bitfinex-derivatives/quotes_BTCF0:USTF0_20250222
["timestamp","ask_amount","ask_price","bid_price","bid_amount"]
[1740201619905,0.00214351,96477.0,96476.0,0.928922]
[1740201620415,0.00214351,96477.0,96476.0,1.24292284]
[1740201620906,0.20946331,96477.0,96476.0,1.24292284]
[1740201627316,0.00214351,96477.0,96476.0,1.24292284]
[1740201627617,0.20946331,96477.0,96476.0,1.24292284]
[1740201628117,0.20946331,96477.0,96476.0,0.928922]
[1740201628815,0.20946331,96477.0,96476.0,0.568122]
[1740201631920,0.20946331,96477.0,96476.0,0.207322]
[1740201632120,0.20946331,96477.0,96476.0,0.568122]
[1740201634415,0.20946331,96477.0,96476.0,0.207322]
[1740201634815,0.20946331,96477.0,96476.0,0.568122]
[1740201636223,0.20946331,96477.0,96476.0,0.8838272]
[1740201639125,0.24266331,96477.0,96476.0,0.8838272]
[1740201648828,0.24266331,96477.0,96476.0,0.568122]
[1740201649029,0.24266331,96477.0,96476.0,0.207322]
[1740201649225,0.24266331,96477.0,96476.0,0.568122]
[1740201649531,0.03534351,96477.0,96476.0,0.568122]
[1740201650222,0.00214351,96477.0,96476.0,0.568122]
[1740201650427,0.00214351,96477.0,96476.0,0.632222]
[1740201652031,0.00214351,96477.0,96476.0,0.993022]
[1740201653834,0.00214351,96477.0,96476.0,0.962022]
[1740201656433,0.00214351,96477.0,96476.0,1.27777613]
[1740201656742,0.00214351,96477.0,96476.0,1.24467613]
[1740201663344,0.20946331,96477.0,96476.0,1.24467613]
[1740201663848,0.00214351,96477.0,96476.0,1.24467613]
[1740201664150,0.00214351,96477.0,96476.0,0.928922]
[1740201664450,0.03234351,96477.0,96476.0,0.928922]
[1740201665645,0.23966331,96477.0,96476.0,0.928922]
[1740201671756,0.24982316,96477.0,96476.0,0.928922]
[1740201672657,0.24982316,96477.0,96476.0,1.23955414]
[1740201673152,0.24982316,96477.0,96476.0,1.13251214]
[1740201673450,0.25982316,96477.0,96476.0,1.03223214]
[1740201673661,0.25982316,96477.0,96476.0,0.67143214]
[1740201675359,0.24982316,96477.0,96476.0,0.87875414]
[1740201675544,0.25982316,96477.0,96476.0,0.87875414]
[1740201676359,0.24966331,96477.0,96476.0,0.87875414]
[1740201677251,0.24966331,96477.0,96476.0,0.67143214]
[1740201677252,0.26007975,96477.0,96476.0,0.67143214]
[1740201677445,0.26007975,96477.0,96476.0,0.3608]
[1740201677649,0.24966331,96477.0,96476.0,0.568122]
[1740201677846,0.24966331,96477.0,96476.0,0.3608]
[1740201680050,0.26025085,96477.0,96476.0,0.3608]
[1740201680257,0.24966331,96477.0,96476.0,0.568122]
[1740201680959,0.24966331,96477.0,96476.0,0.3608]
[1740201682464,0.24966331,96477.0,96476.0,0.568122]
[1740201683167,0.26026332,96477.0,96476.0,0.568122]
[1740201683760,0.24966331,96477.0,96476.0,0.568122]
[1740201685570,0.25993291,96477.0,96476.0,0.568122]
[1740201685763,0.24966331,96477.0,96476.0,0.568122]
[1740201686168,0.23966331,96477.0,96476.0,0.568122]
[1740201686369,0.24966331,96477.0,96476.0,0.568122]
[1740201687764,0.26023007,96477.0,96476.0,0.568122]
[1740201690366,0.24966331,96477.0,96476.0,0.568122]
[1740201691272,0.26031215,96477.0,96476.0,0.568122]
[1740201691677,0.26031215,96477.0,96476.0,0.3608]
[1740201692167,0.207322,96476.0,96475.0,0.3078036]
[1740201692368,0.207322,96476.0,96475.0,0.10048]
[1740201692575,0.217322,96476.0,96475.0,0.10048]
[1740201693375,0.218322,96476.0,96475.0,0.10048]
[1740201694064,0.218322,96476.0,96475.0,0.3078041]
[1740201695266,0.218322,96476.0,96475.0,0.10048]
[1740201695778,0.218322,96476.0,96475.0,0.3078041]
[1740201696972,0.218322,96476.0,96475.0,0.10048]
[1740201697474,0.218322,96476.0,96475.0,0.3078041]
[1740201698069,0.218322,96476.0,96475.0,0.10048]
[1740201699775,0.218322,96476.0,96475.0,0.13298]
[1740201700076,0.218322,96476.0,96475.0,0.3403041]
[1740201700277,0.218322,96476.0,96475.0,0.13298]
[1740201700976,0.218322,96476.0,96475.0,0.3403041]
[1740201701176,0.218322,96476.0,96475.0,0.13298]
[1740201702672,0.218322,96476.0,96475.0,0.3403041]
[1740201704974,0.208322,96476.0,96475.0,0.3403041]
[1740201705182,0.218322,96476.0,96475.0,0.3403041]
[1740201713999,0.218322,96476.0,96475.0,0.13298]
[1740201715091,0.26872311,96476.0,96475.0,0.13298]
[1740201715790,0.26872311,96476.0,96475.0,0.3403041]
[1740201716187,0.26872311,96476.0,96475.0,0.13298]
[1740201717794,0.26872311,96476.0,96475.0,0.3403041]
[1740201719405,0.26872311,96476.0,96475.0,0.13298]
[1740201722103,0.26872311,96476.0,96475.0,0.3403041]
[1740201723007,0.218322,96476.0,96475.0,0.13298]
[1740201724608,0.218322,96476.0,96475.0,0.3403041]
[1740201727810,0.218322,96476.0,96475.0,0.13298]
[1740201729009,0.011,96476.0,96474.0,0.18635784]
[1740201729207,0.2173241,96475.0,96474.0,0.18635784]
[1740201729710,0.2173241,96475.0,96474.0,0.10008]
[1740201730914,0.2173241,96475.0,96473.0,0.18635784]
[1740201730915,0.2073263,96474.0,96473.0,0.18635784]
[1740201731209,0.2173263,96474.0,96473.0,0.18635784]
[1740201732909,0.2183263,96474.0,96473.0,0.18635784]
[1740201735410,0.2073284,96473.0,96472.0,0.3608]
[1740201735707,0.2173284,96473.0,96472.0,0.3608]
[1740201736616,0.2173284,96473.0,96472.0,0.3618]
[1740201738709,0.2073284,96473.0,96472.0,0.3618]
[1740201739206,0.2173284,96473.0,96472.0,0.3618]
[1740201739614,0.37287228,96473.0,96472.0,0.3618]
[1740201740211,0.37287228,96473.0,96472.0,0.001]
[1740201740411,0.37287228,96473.0,96472.0,0.3618]
[1740201743021,0.2173284,96473.0,96472.0,0.3618]
[1740201743420,0.2073284,96473.0,96472.0,0.3618]
[1740201743614,0.2173284,96473.0,96472.0,0.3618]
[1740201748522,0.2073284,96473.0,96472.0,0.3618]
[1740201748730,0.2173284,96473.0,96472.0,0.3618]
[1740201749233,0.2073284,96473.0,96472.0,0.3618]
[1740201749413,0.2173284,96473.0,96472.0,0.3618]
[1740201751430,0.2073284,96473.0,96472.0,0.3618]
[1740201751822,0.2173284,96473.0,96472.0,0.3618]
[1740201758733,0.2073284,96473.0,96472.0,0.3618]
[1740201759233,0.2073284,96473.0,96472.0,0.5691306]
[1740201759734,0.2173284,96473.0,96472.0,0.5691306]
[1740201759931,0.2173284,96473.0,96472.0,0.58533327]
[1740201760327,0.25773006,96473.0,96472.0,0.58533327]
[1740201760924,0.25773006,96473.0,96472.0,0.5691306]
[1740201763938,0.2073284,96473.0,96472.0,0.75548844]
[1740201767732,0.00014351,96477.0,96472.0,0.3618]
[1740201767933,0.00014351,96477.0,96476.0,0.207322]
[1740201768335,0.20746331,96477.0,96476.0,0.207322]
[1740201770839,0.20946331,96477.0,96476.0,0.207322]
[1740201773433,0.2073241,96475.0,96474.0,0.24847712]
[1740201773743,0.2073241,96475.0,96474.0,0.34851712]
[1740201774339,0.2073241,96475.0,96474.0,0.24847712]
[1740201774638,0.2073241,96475.0,96474.0,0.34851712]
[1740201774639,0.2083241,96475.0,96474.0,0.34851712]
[1740201776451,0.2083241,96475.0,96474.0,0.55584342]
[1740201776646,0.2083241,96475.0,96474.0,0.34851712]
[1740201777147,0.2083241,96475.0,96474.0,0.10004]
[1740201781248,0.2083241,96475.0,96474.0,0.3073663]
[1740201784250,0.2083241,96475.0,96474.0,0.10004]
[1740201784551,0.2083241,96475.0,96474.0,0.3073663]
[1740201784943,0.2083241,96475.0,96474.0,0.10004]
[1740201787346,0.2083241,96475.0,96474.0,0.3073663]
[1740201789353,0.001,96475.0,96474.0,0.3073663]
[1740201789745,0.001,96475.0,96474.0,0.3379663]
[1740201790446,0.001,96475.0,96474.0,0.34860981]
[1740201790746,0.001,96475.0,96474.0,0.3379663]
[1740201791645,0.2083241,96475.0,96474.0,0.3379663]
[1740201793652,0.001,96475.0,96474.0,0.3379663]
[1740201796454,0.2083241,96475.0,96474.0,0.3379663]
[1740201797048,0.2083241,96475.0,96474.0,1.0595663]
[1740201798146,0.001,96475.0,96474.0,1.0595663]
[1740201798347,0.2083241,96475.0,96474.0,1.0595663]
[1740201798860,0.001,96475.0,96474.0,1.0595663]
[1740201802552,0.001,96475.0,96474.0,0.3379663]
[1740201802851,0.001,96475.0,96474.0,1.0595663]
[1740201803248,0.2083241,96475.0,96474.0,1.0595663]
[1740201803449,0.001,96475.0,96474.0,1.0595663]
[1740201803952,0.2083241,96475.0,96474.0,1.0595663]
[1740201804249,0.001,96475.0,96474.0,1.0595663]
[1740201804959,0.2083241,96475.0,96474.0,1.0595663]
[1740201805351,0.2083241,96475.0,96474.0,0.3379663]
[1740201805553,0.2083241,96475.0,96474.0,1.0595663]
[1740201807456,0.001,96475.0,96474.0,1.0595663]
[1740201808248,0.2083241,96475.0,96474.0,1.0595663]
[1740201808855,0.001,96475.0,96474.0,1.0595663]
[1740201809058,0.2083241,96475.0,96474.0,1.0595663]
[1740201810356,0.001,96475.0,96474.0,1.0595663]
[1740201812466,0.001,96475.0,96474.0,1.68274191]
[1740201816867,0.001,96475.0,96474.0,1.37210977]
[1740201821660,0.001,96475.0,96474.0,0.65050977]
[1740201821860,0.001,96475.0,96474.0,1.37210977]
[1740201822563,0.00014351,96477.0,96474.0,1.16478347]
[1740201822769,0.00014351,96477.0,96476.0,0.207322]
[1740201823961,0.00114351,96477.0,96476.0,0.207322]
[1740201824568,0.00214351,96477.0,96476.0,0.207322]
[1740201824968,0.00214351,96477.0,96476.0,0.928922]
[1740201832675,0.00214351,96477.0,96476.0,1.23975049]
[1740201836566,0.00214351,96477.0,96476.0,1.24699709]
[1740201836767,0.00214351,96477.0,96476.0,0.52539709]
[1740201836968,0.00214351,96477.0,96476.0,1.24699709]
[1740201859500,0.0304,96481.0,96476.0,1.03967509]
[1740201859806,0.0304,96481.0,96480.0,0.2073134]
[1740201860707,0.0314,96481.0,96480.0,0.29156293]
[1740201861001,0.2387112,96481.0,96480.0,0.29156293]
[1740201861208,0.2387112,96481.0,96480.0,1.01316293]
[1740201862103,0.001,96481.0,96480.0,1.01316293]
[1740201862311,0.0331,96492.0,96491.0,0.2072897]
[1740201862605,0.0331,96492.0,96491.0,0.6996897]
[1740201865109,0.0331,96492.0,96491.0,0.71000606]
[1740201867708,0.0331,96492.0,96491.0,1.07080606]
[1740201868109,0.0305,96498.0,96497.0,0.2072769]
[1740201868309,0.0632,96498.0,96497.0,0.2072769]
[1740201868510,0.2704747,96498.0,96497.0,0.2072769]
[1740201868715,0.0632,96498.0,96497.0,0.2072769]
[1740201868908,0.2704747,96498.0,96497.0,0.2072769]
[1740201869307,0.2704747,96498.0,96497.0,0.2082769]
[1740201869815,0.2704747,96498.0,96497.0,0.2092769]
[1740201871915,0.2704747,96498.0,96497.0,0.39534467]
[1740201874817,0.2704747,96498.0,96497.0,0.75614467]
[1740201882418,0.2704747,96498.0,96497.0,0.39534467]
[1740201882611,0.2704747,96498.0,96497.0,0.75614467]
[1740201882817,0.2704747,96498.0,96497.0,0.5700769]
[1740201889013,0.2399747,96498.0,96497.0,0.5700769]
[1740201892030,0.2715747,96498.0,96497.0,0.5700769]
[1740201897126,0.2715747,96498.0,96497.0,0.2092769]
[1740201897326,0.2715747,96498.0,96497.0,0.5700769]
[1740201901237,0.2715747,96498.0,96497.0,0.2092769]
[1740201901431,0.2715747,96498.0,96497.0,0.5700769]
[1740201902938,0.2399747,96498.0,96497.0,0.5700769]
[1740201905428,0.0327,96498.0,96497.0,0.5700769]
[1740201905631,0.2399747,96498.0,96497.0,0.5700769]
[1740201905928,0.2399747,96498.0,96497.0,0.2092769]
[1740201906236,0.2399747,96498.0,96497.0,0.5700769]
[1740201906435,0.1,96500.0,96497.0,0.3628]
[1740201906636,0.1,96500.0,96499.0,0.2072726]
[1740201907137,0.1,96500.0,96499.0,0.2400726]
[1740201908838,0.1,96500.0,96499.0,0.56614361]
[1740201909341,0.1,96500.0,96499.0,0.56714361]
[1740201909541,0.1,96500.0,96499.0,0.56814361]
[1740201910935,0.1,96500.0,96499.0,1.28974361]
[1740201911439,0.0326,96506.0,96505.0,0.2072597]
[1740201911741,0.0326,96506.0,96505.0,0.3072197]
[1740201912628,0.0326,96506.0,96505.0,0.3092197]
[1740201914743,0.2398575,96506.0,96505.0,0.3092197]
[1740201914934,0.0326,96506.0,96505.0,0.3092197]
[1740201919248,0.0326,96506.0,96505.0,0.49536603]
[1740201920045,0.0326,96506.0,96505.0,1.21696603]
[1740201926251,0.0326,96506.0,96505.0,0.3092197]
[1740201926455,0.2398575,96506.0,96505.0,1.0308197]
[1740201927555,0.0326,96506.0,96505.0,1.0308197]
[1740201928050,0.2398575,96506.0,96505.0,1.0308197]
[1740201935654,0.2398575,96506.0,96505.0,0.3092197]
[1740201935957,0.2398575,96506.0,96505.0,1.0308197]
[1740201937773,0.2398575,96506.0,96505.0,1.34123993]
[1740201940557,0.2398575,96506.0,96505.0,1.0308197]
[1740201946762,0.2398575,96506.0,96505.0,1.0307797]
[1740201947363,0.2398575,96506.0,96505.0,1.35652311]
[1740201948860,0.2398575,96506.0,96505.0,1.37271863]
[1740201951055,0.0326,96506.0,96505.0,1.37271863]
[1740201951264,0.2398575,96506.0,96505.0,1.37271863]
[1740201953470,0.0326,96506.0,96505.0,1.37271863]
[1740201955273,0.0326,96506.0,96505.0,1.04697522]
[1740201956072,0.0326,96506.0,96505.0,1.0307797]
[1740201957672,0.0311,96511.0,96510.0,0.2072489]
[1740201958072,0.0311,96511.0,96510.0,0.2384489]
[1740201958766,0.2072347,96517.0,96516.0,0.2072361]
[1740201958964,0.0331,96518.0,96516.0,0.6679161]
[1740201959264,0.2403322,96518.0,96517.0,0.2072339]
[1740201960576,0.0331,96518.0,96517.0,0.2072339]
[1740201960775,0.2403318,96518.0,96517.0,0.2072339]
[1740201961373,0.2403318,96518.0,96517.0,0.2082339]
[1740201961569,0.2403318,96518.0,96517.0,0.2092339]
[1740201961874,0.2403318,96518.0,96517.0,0.9308339]
[1740201962968,0.0331,96518.0,96517.0,0.9308339]
[1740201963978,0.2403318,96518.0,96517.0,0.9308339]
[1740201966974,0.0331,96518.0,96517.0,0.9308339]
[1740201967175,0.0331,96518.0,96517.0,1.17928344]
[1740201967372,0.031,96519.0,96517.0,0.97204954]
[1740201967572,0.2382297,96519.0,96518.0,0.2072318]
[1740201967872,0.2382297,96519.0,96518.0,0.2377318]
[1740201968273,0.2072253,96522.0,96521.0,0.2072253]
[1740201968772,0.01029259,96525.0,96520.0,0.0518067]
[1740201968978,0.2072167,96525.0,96524.0,0.2072189]
[1740201969278,0.0308,96526.0,96523.0,0.0518051]
[1740201969474,0.2380146,96526.0,96525.0,0.5680167]
[1740201970175,0.2380146,96526.0,96525.0,0.6678967]
[1740201970375,0.2072146,96526.0,96525.0,0.6678967]
[1740201970775,0.21750303,96526.0,96525.0,0.6678967]
[1740201970985,0.24920303,96526.0,96525.0,0.6678967]
[1740201971172,0.24920303,96526.0,96525.0,0.6688967]
[1740201971368,0.24920303,96526.0,96525.0,0.6698967]
[1740201971572,0.28250303,96526.0,96525.0,0.6698967]
[1740201976179,0.28250303,96526.0,96525.0,0.3090967]
[1740201976486,0.28250303,96526.0,96525.0,0.6698967]
[1740201978794,0.2722146,96526.0,96525.0,0.6698967]
[1740201981184,0.2722146,96526.0,96525.0,0.3628]
[1740201981393,0.2722146,96526.0,96525.0,0.46268]
[1740201981683,0.2722146,96526.0,96525.0,0.6698967]
[1740201983890,0.2722146,96526.0,96525.0,0.46268]
[1740201984481,0.2722146,96526.0,96525.0,0.3628]
[1740201984688,0.2722146,96526.0,96525.0,0.46268]
[1740201985181,0.2722146,96526.0,96525.0,0.3628]
[1740201985182,0.2822146,96526.0,96525.0,0.3628]
[1740201988593,0.5026146,96526.0,96525.0,0.3628]
[1740201997207,0.55298992,96526.0,96525.0,0.3628]
[1740202000607,0.5026146,96526.0,96525.0,0.3628]
[1740202006118,0.4276146,96526.0,96525.0,0.3628]
[1740202006321,0.4376146,96526.0,96525.0,0.3628]
[1740202008909,0.4276146,96526.0,96525.0,0.3628]
[1740202009311,0.48798965,96526.0,96525.0,0.3628]
[1740202009825,0.48798965,96526.0,96525.0,0.5700167]
[1740202010320,0.48798965,96526.0,96525.0,0.3628]
[1740202011521,0.48798965,96526.0,96525.0,0.002]
[1740202011716,0.48798965,96526.0,96525.0,0.3628]
[1740202012425,0.26758965,96526.0,96525.0,0.3628]
[1740202018213,0.26758965,96526.0,96525.0,0.5700167]
[1740202018524,0.26758965,96526.0,96525.0,0.3628]
[1740202018823,0.25758965,96526.0,96525.0,0.5700167]
[1740202019020,0.2072146,96526.0,96525.0,0.5700167]
[1740202019324,0.2172146,96526.0,96525.0,0.5700167]
[1740202020339,0.2172146,96526.0,96525.0,0.3628]
[1740202021526,0.2172146,96526.0,96525.0,0.5700167]
[1740202022726,0.2072146,96526.0,96525.0,0.5700167]
[1740202030533,0.25758916,96526.0,96525.0,0.5700167]
[1740202034940,0.36258722,96526.0,96525.0,0.5700167]
[1740202039137,0.2072146,96526.0,96525.0,0.6698567]
[1740202042031,0.2072146,96526.0,96525.0,0.5700167]
[1740202042232,0.2072146,96526.0,96525.0,0.6698567]
[1740202044233,0.01044315,96527.0,96525.0,0.46264]
[1740202044433,0.01044315,96527.0,96526.0,0.2072146]
[1740202044434,0.2072124,96527.0,96526.0,0.2072146]
[1740202045141,0.21767391,96527.0,96526.0,0.2072146]
[1740202045443,0.21767391,96527.0,96526.0,0.2403146]
[1740202045628,0.21767391,96527.0,96526.0,0.2413146]
[1740202046027,0.21767391,96527.0,96526.0,0.6021146]
[1740202046237,0.21767391,96527.0,96526.0,0.6031146]
[1740202047445,0.21767391,96527.0,96526.0,0.3628]
[1740202048142,0.21767391,96527.0,96526.0,0.5700146]
[1740202050740,0.01046151,96527.0,96526.0,0.5700146]
[1740202050940,0.2072124,96527.0,96526.0,0.5700146]
[1740202051245,0.15537262,96532.0,96529.0,0.2590053]
[1740202051246,0.259014,96530.0,96529.0,0.2590053]
[1740202052244,0.259014,96530.0,96529.0,0.2600053]
[1740202052737,0.259014,96530.0,96529.0,0.2610053]
[1740202053143,0.26938206,96530.0,96529.0,0.2610053]
[1740202054844,0.26938206,96530.0,96529.0,0.6218053]
[1740202067462,0.21758046,96530.0,96529.0,0.6218053]
[1740202068860,0.21758046,96530.0,96529.0,0.2610053]
[1740202069057,0.21758046,96530.0,96529.0,0.6218053]
[1740202071157,0.21762075,96530.0,96529.0,0.6218053]
[1740202074865,0.21762075,96530.0,96529.0,0.2610053]
[1740202075069,0.21762075,96530.0,96529.0,0.6218053]
[1740202081279,0.21762075,96530.0,96529.0,0.63799806]
[1740202082381,0.37305265,96530.0,96529.0,0.63799806]
[1740202083180,0.37305265,96530.0,96529.0,0.6218053]
[1740202085582,0.37305265,96530.0,96529.0,0.2610053]
[1740202085786,0.37305265,96530.0,96529.0,0.6218053]
[1740202090389,0.21762075,96530.0,96529.0,0.6218053]
[1740202111598,0.24802075,96530.0,96529.0,0.6218053]
[1740202122225,0.24802075,96530.0,96529.0,0.2610053]
[1740202122426,0.24802075,96530.0,96529.0,0.6218053]
[1740202124727,0.24802075,96530.0,96529.0,0.2610053]
[1740202124924,0.24802075,96530.0,96529.0,0.6218053]
[1740202126030,0.21762075,96530.0,96529.0,0.6218053]
[1740202127830,0.28312075,96530.0,96529.0,0.6218053]
[1740202136939,0.28312075,96530.0,96529.0,0.80811861]
[1740202137636,0.28312075,96530.0,96529.0,0.44731861]
[1740202137833,0.28312075,96530.0,96529.0,0.80811861]
[1740202141244,0.28312075,96530.0,96529.0,0.6218053]
[1740202142530,4.029e-05,96530.0,96529.0,0.6218053]
[1740202142838,0.20724629,96530.0,96529.0,0.6218053]
[1740202144141,0.207206,96530.0,96529.0,0.6218053]
[1740202146541,0.20724629,96530.0,96529.0,0.6218053]
[1740202149842,0.20724629,96530.0,96529.0,0.87016885]
[1740202153643,0.20724629,96530.0,96529.0,0.80807748]
[1740202157251,0.20724629,96530.0,96529.0,0.87016885]
[1740202171261,0.20724629,96530.0,96529.0,0.6218053]
[1740202176762,0.20724629,96530.0,96529.0,0.2610053]
[1740202176957,0.20724629,96530.0,96529.0,0.6218053]
[1740202179868,0.20724629,96530.0,96529.0,0.7216053]
[1740202205879,0.03990001,96553.0,96529.0,0.4626]
[1740202206083,0.0517936,96545.0,96535.0,0.5679953]
[1740202206273,0.2071746,96545.0,96535.0,0.5679953]
[1740202206472,0.0517938,96545.0,96535.0,0.5986953]
[1740202206675,0.39357949,96542.0,96535.0,0.5986953]
[1740202206876,0.24938764,96542.0,96535.0,0.5986953]
[1740202207071,0.2071852,96540.0,96535.0,0.5986953]
[1740202207679,0.2071852,96540.0,96535.0,0.5996953]
[1740202207983,0.2071852,96540.0,96535.0,0.6006953]
[1740202208574,0.2071852,96540.0,96535.0,0.6019953]
[1740202208779,0.2376872,96539.0,96535.0,0.6019953]
[1740202208981,0.2071888,96538.0,96535.0,0.6019953]
[1740202209289,0.2071888,96538.0,96536.0,0.2071931]
[1740202209290,0.1554319,96537.0,96536.0,0.2071931]
[1740202209788,0.3626229,96537.0,96536.0,0.2071931]
[1740202210792,0.3626229,96537.0,96536.0,0.2091931]
[1740202211084,0.3626229,96537.0,96536.0,0.3089931]
[1740202211279,0.3626229,96537.0,96536.0,0.2091931]
[1740202211480,0.3626229,96537.0,96536.0,0.3089931]
[1740202212886,0.3626229,96537.0,96536.0,0.6697931]
[1740202214591,0.207191,96537.0,96536.0,0.55744825]
[1740202214787,0.207191,96537.0,96536.0,0.91824825]
[1740202215687,0.207191,96537.0,96536.0,0.55744825]
[1740202215893,0.207191,96537.0,96536.0,0.91824825]
[1740202218198,0.207191,96537.0,96536.0,0.6697931]
[1740202219289,0.0517973,96538.0,96537.0,0.2589864]
[1740202219495,0.2589883,96538.0,96537.0,0.2589864]
[1740202220705,0.2589883,96538.0,96537.0,0.2599864]
[1740202220904,0.2589883,96538.0,96537.0,0.2609864]
[1740202222900,0.2589883,96538.0,96537.0,0.7215864]
[1740202223209,0.207191,96538.0,96537.0,0.7215864]
[1740202227908,0.2071868,96539.0,96538.0,0.2071867]
[1740202228312,0.0517953,96542.0,96541.0,0.2071802]
[1740202228507,0.2722785,96543.0,96542.0,0.2071802]
[1740202228814,0.2397785,96543.0,96542.0,0.2071802]
[1740202230315,0.2397785,96543.0,96542.0,0.3069802]
[1740202230714,0.2397785,96543.0,96542.0,0.3089802]
[1740202231314,0.2397785,96543.0,96542.0,0.2091802]
[1740202231520,0.2397785,96543.0,96542.0,0.3089802]
[1740202238818,0.2397785,96543.0,96542.0,0.6697802]
[1740202240423,0.2397785,96543.0,96542.0,0.85612973]
[1740202241011,0.2397785,96543.0,96542.0,0.84882973]
[1740202244619,0.2397785,96543.0,96542.0,0.6624802]
[1740202247923,0.2397785,96543.0,96542.0,0.3628]
[1740202248119,0.2497785,96543.0,96542.0,0.3628]
[1740202250324,0.2397785,96543.0,96542.0,0.3628]
[1740202250525,0.2497785,96543.0,96542.0,0.3628]
[1740202252534,0.2397785,96543.0,96542.0,0.3628]
[1740202252927,0.2497785,96543.0,96542.0,0.3628]
[1740202265628,0.2497785,96543.0,96539.0,0.09839]
[1740202265629,0.2071845,96540.0,96539.0,0.09839]
[1740202265828,0.2171845,96540.0,96539.0,0.09839]
[1740202266038,0.2072017,96532.0,96531.0,0.18625787]
[1740202266342,0.2172017,96532.0,96531.0,0.18625787]
[1740202267933,0.2172017,96532.0,96531.0,0.18725787]
[1740202268332,0.2182017,96532.0,96531.0,0.18825787]
[1740202268533,0.2182017,96532.0,96531.0,0.39546177]
[1740202268735,0.2082017,96532.0,96531.0,0.18825787]
[1740202268933,0.2082017,96532.0,96531.0,0.39546177]
[1740202269135,0.2082017,96532.0,96531.0,0.2092039]
[1740202272838,0.2082017,96532.0,96531.0,0.39546177]
[1740202277950,0.00052001,96539.0,96531.0,0.18825787]
[1740202278250,0.2071901,96540.0,96539.0,0.258981]
[1740202279650,0.2081901,96540.0,96539.0,0.259981]
[1740202280251,0.2081901,96540.0,96539.0,0.260981]
[1740202281348,0.2081901,96540.0,96539.0,0.292781]
[1740202286847,0.2081901,96540.0,96539.0,0.2409845]
[1740202287451,0.2081901,96540.0,96539.0,0.0338]
[1740202287650,0.2181901,96540.0,96539.0,0.002]
[1740202287948,0.2486901,96540.0,96539.0,0.002]
[1740202301960,0.6094901,96540.0,96539.0,0.002]
[1740202316262,0.6094901,96540.0,96536.0,0.06732]
[1740202316263,0.4023,96540.0,96536.0,0.06732]
[1740202316470,0.217191,96537.0,96536.0,0.06732]
[1740202316769,0.2071974,96534.0,96533.0,0.18593448]
[1740202316966,0.2071974,96534.0,96527.0,0.00015545]
[1740202316967,0.01,96534.0,96527.0,0.00015545]
[1740202317165,0.0331,96536.0,96527.0,0.00015545]
[1740202317166,0.1447003,96528.0,96527.0,0.00015545]
[1740202318968,0.1447003,96528.0,96527.0,0.00115545]
[1740202319175,0.1457003,96528.0,96527.0,0.00215545]
[1740202320665,0.1780003,96528.0,96527.0,0.00215545]
[1740202322862,0.1457003,96528.0,96527.0,0.00215545]
[1740202325776,0.1768003,96528.0,96527.0,0.00215545]
[1740202331377,0.1457003,96528.0,96527.0,0.00215545]
[1740202332976,0.1357003,96528.0,96527.0,0.00215545]
[1740202333379,0.1357003,96528.0,96527.0,0.20936785]
[1740202334174,0.1573103,96531.0,96530.0,0.2590053]
[1740202334370,0.1074103,96531.0,96530.0,0.2590053]
[1740202335275,0.1084103,96531.0,96530.0,0.2600053]
[1740202336875,0.1084103,96531.0,96530.0,0.2610053]
[1740202348793,0.1410103,96531.0,96530.0,0.2610053]
[1740202349492,0.1410103,96531.0,96530.0,0.2092039]
[1740202351891,0.1084103,96531.0,96530.0,0.2092039]
[1740202375515,0.1084103,96531.0,96530.0,0.002]
[1740202375820,0.1408103,96531.0,96530.0,0.002]
[1740202377121,0.1408103,96531.0,96530.0,0.209206]
[1740202378325,0.1084103,96531.0,96530.0,0.209206]
[1740202399742,0.1084103,96531.0,96530.0,0.570006]
[1740202401236,0.2082039,96531.0,96530.0,0.570006]
[1740202404647,0.001,96531.0,96530.0,0.570006]
[1740202404844,0.2082039,96531.0,96530.0,0.570006]
[1740202405238,0.2082039,96531.0,96530.0,0.75605854]
[1740202405835,0.21850426,96531.0,96530.0,0.75605854]
[1740202408255,0.21850426,96531.0,96530.0,0.570006]
[1740202408553,0.001,96531.0,96530.0,0.570006]
[1740202411849,0.001,96531.0,96530.0,0.58048494]
[1740202418159,0.001,96531.0,96530.0,0.570006]
[1740202419863,0.001,96531.0,96530.0,0.58060953]
[1740202422568,0.001,96531.0,96530.0,0.570006]
[1740202424165,0.001,96531.0,96530.0,0.669766]
[1740202424667,0.001,96531.0,96530.0,0.68009543]
[1740202426867,0.001,96531.0,96530.0,0.71019543]
[1740202430558,0.001,96531.0,96530.0,0.570006]
[1740202430762,0.2082039,96531.0,96530.0,0.669766]
[1740202431566,0.2394039,96531.0,96530.0,0.669766]
[1740202432265,0.2394039,96531.0,96530.0,0.570006]
[1740202432465,0.2394039,96531.0,96530.0,0.669766]
[1740202435669,0.2394039,96531.0,96530.0,0.46256]
[1740202435865,0.2394039,96531.0,96530.0,0.3628]
[1740202436369,0.2394039,96531.0,96530.0,0.002]
[1740202436572,0.2394039,96531.0,96530.0,0.209206]
[1740202440979,0.2725039,96531.0,96530.0,0.209206]
[1740202442376,0.2413039,96531.0,96530.0,0.209206]
[1740202443880,0.2736039,96531.0,96530.0,0.209206]
[1740202458393,0.2736039,96531.0,96530.0,0.45711386]
[1740202461886,0.2736039,96531.0,96530.0,0.209206]
[1740202471684,0.2413039,96531.0,96530.0,0.209206]
[1740202477097,0.2082039,96531.0,96530.0,0.209206]
[1740202484097,0.2082039,96531.0,96530.0,0.240406]
[1740202495596,0.2082039,96531.0,96530.0,0.209206]
[1740202496302,0.2082039,96531.0,96530.0,0.45714316]
[1740202503107,0.2082039,96531.0,96530.0,0.52054316]
[1740202503611,0.2082039,96531.0,96530.0,0.272606]
[1740202507512,0.001,96531.0,96530.0,0.239506]
[1740202507712,0.2082039,96531.0,96530.0,0.239506]
[1740202508625,0.001,96531.0,96530.0,0.239506]
[1740202512232,0.001,96531.0,96530.0,0.339266]
[1740202513032,0.2082039,96531.0,96530.0,0.339266]
[1740202513531,0.001,96531.0,96530.0,0.339266]
[1740202514530,0.2082039,96531.0,96530.0,0.339266]
[1740202515031,0.001,96531.0,96530.0,0.6747206]
[1740202516625,0.001,96531.0,96530.0,1.0355206]
[1740202519035,0.001,96531.0,96530.0,1.04581905]
[1740202519338,0.001,96531.0,96530.0,0.71036445]
[1740202520030,0.0308,96536.0,96535.0,0.2071953]
[1740202520537,0.0308,96536.0,96535.0,0.2712953]
[1740202521629,0.0308,96536.0,96535.0,0.6320953]
[1740202522236,0.0308,96536.0,96535.0,0.6330953]
[1740202526234,0.0308,96536.0,96535.0,0.96599233]
[1740202526639,0.0308,96536.0,96535.0,0.60519233]